Cogmind - Beta 16 *** ADVENTURER MODE // 2025.12.25 @ 22:23:54 Player: Lukysa Result: Destroyed by Executioner with Helical Railgun Performance ------------- Evolutions (5) 2500 Regions Visited (10) 2000 Robots Destroyed (55) 275 Value Destroyed (2468) 2468 Prototype IDs (3) 60 Alien Tech Used (0) 0 Bonus (2191) 2191 TOTAL SCORE: 9494 Bonus ------- Follower Combat Kills 265 Registered with UFD 300 Met Optimus in HQ 500 Met Warlord at Base 500 MAIN.C Attacked Warlord 500 Warlord Defense Kills 294 Friendly Fire -168 Cogmind --------- Core Integrity 0/1000 Matter 269/300 Energy 315/315 System Corruption 10% Temperature Cool (0) Movement Treading (160) Location -5/Warlord Parts ------- > --- POWER (3) -------- Neutrino Core > --- PROPULSION (5) --- Spiked Medium Treads > --- UTILITY (5) ------ 0b10 Decoder Chip [Looter] Advanced Melee Analysis Suite Advanced Melee Analysis Suite > --- WEAPON (4) ------- Backup Laser III Backup Laser III Coil Gun > --- INVENTORY (5) ---- High-capacity Storage Unit Improved Particle Charger Long-range Proton Cannon HERF Cannon Hardcell Cannon Peak State ------------ > --- POWER ------------ Neutrino Core Neutrino Core Micro Fission Core > --- PROPULSION ------- Improved Medium Treads Flexi-carbon Leg Flexi-carbon Leg Flexi-carbon Leg Flexi-carbon Leg > --- UTILITY ---------- Advanced Heat Sink Medium Storage Unit Energy Filter Improved Particle Charger Weapon Cycler > --- WEAPON ----------- Improved Heavy Laser Heavy Phase Cannon Matter Neutralizer Magnetic Acceleration Cannon > --- INVENTORY -------- Deuterium Engine Light Angular Momentum Engine High-capacity Storage Unit Energy Filter Improved Particle Charger EM Shield Force Field Force Field Dispersion Rifle Magnetic Acceleration Cannon [Rating: 90] Favorites ----------- Power Neutrino Core Engine Improved Deuterium Engine Power Core Neutrino Core Propulsion Flexi-carbon Leg Treads Improved Medium Treads Leg Flexi-carbon Leg Wheel Compact Wheel Hover Unit Hover Unit Flight Unit VTOL Module Utility Medium Storage Unit Device Advanced Heat Sink Storage Medium Storage Unit Processor Advanced Melee Analysis Suite Hackware System Shield Protection Layered Light Armor Plating Weapon Magnetic Acceleration Cannon Energy Gun Cooled Pulse Rifle Energy Cannon Heavy Phase Cannon Ballistic Gun Improved Heavy Machine Gun Ballistic Cannon Magnetic Acceleration Cannon Launcher Heavy Rocket Launcher Impact Weapon Makeshift Hammer Slashing Weapon Makeshift Axe Build | -11 -10 -10 -8 -6 -6 -6 -5 -5 -5 -5 ------- Run | Yrd Mat Sub Scr Fac Low Low Fac Upp Upp War Slots Evolved 10 | . . . . 8 . . 2 . . . Power 2 | . . . . 1 . . 1 . . . Propulsion 3 | . . . . 3 . . . . . . Utility 3 | . . . . 3 . . . . . . Weapon 2 | . . . . 1 . . 1 . . . Parts Attached 92 | 4 1 2 13 22 7 . 3 8 23 9 Power 16 | . . . 2 4 1 . 1 3 4 1 Engine 9 | . . . 1 3 . . 1 2 1 1 Core 7 | . . . 1 1 1 . . 1 3 . Reactor . | . . . . . . . . . . . Propulsion 25 | 2 1 . 5 8 1 . . . 7 1 Treads 5 | 2 . . . . . . . . 2 1 Leg 9 | . . . . 7 1 . . . 1 . Wheel 1 | . . . . . . . . . 1 . Hover 6 | . 1 . 4 1 . . . . . . Flight 4 | . . . 1 . . . . . 3 . Utility 23 | . . . 4 4 4 . 1 2 2 6 Device 13 | . . . . 4 4 . 1 2 1 1 Storage 2 | . . . 2 . . . . . . . Processor 3 | . . . . . . . . . . 3 Hackware 1 | . . . 1 . . . . . . . Protection 4 | . . . 1 . . . . . 1 2 Artifact . | . . . . . . . . . . . Weapon 28 | 2 . 2 2 6 1 . 1 3 10 1 Energy Gun 9 | 2 . . 1 3 . . 1 . 2 . Energy Cannon 5 | . . . . 1 . . . 2 2 . Ballistic Gun 6 | . . 2 . 1 . . . . 2 1 Ballistic Cannon 4 | . . . 1 1 . . . . 2 . Launcher 1 | . . . . . . . . . 1 . Special Weapon . | . . . . . . . . . . . Impact Weapon 2 | . . . . . 1 . . 1 . . Slashing Weapon 1 | . . . . . . . . . 1 . Piercing Weapon . | . . . . . . . . . . . Special Melee Weapon . | . . . . . . . . . . . Unidentified Prototypes 3 | . . . . 2 . . 1 . . . Corrupted Parts 4 | . . . . . . . . . 3 1 System Corruption 20 | . . . . . . . . . 10 10 Parts Lost 20 | . . . . 1 . . . 2 12 5 Power 5 | . . . . . . . . 1 1 3 Propulsion 11 | . . . . . . . . 1 8 2 Utility 2 | . . . . 1 . . . . 1 . Weapon 2 | . . . . . . . . . 2 . Highest Loss Streak 5 | . . . . 1 . . . 2 5 3 To Critical Strikes . | . . . . . . . . . . . Average Backups 7 | 1 4 5 7 9 9 10 9 9 7 4 Power . | . 1 1 . . 1 2 1 1 . . Propulsion . | . . . . . 1 1 1 . . . Utility 4 | . . . 3 5 4 4 4 5 5 1 Weapon 2 | . 3 4 1 2 3 3 2 2 1 2 Tool/Special . | . . . . . . . . . . . Unused Backups 9 | . . . 2 2 1 . . . 1 3 Power . | . . . . . . . . . . . Propulsion . | . . . . . . . . . . . Utility 5 | . . . . 2 1 . . . 1 1 Weapon 4 | . . . 2 . . . . . . 2 Tool/Special . | . . . . . . . . . . . Average Slot Usage (%) 81 | . 53 42 86 89 99 100 99 99 67 64 Engine 4 | . . . 1 3 6 6 7 11 . 4 Core 5 | . . . . 8 5 6 8 4 11 5 Treads 1 | . 23 . . . . . . . . 5 Leg 12 | . . . . 22 33 33 29 28 4 4 Hover 6 | . 1 14 27 7 . . . . . 2 Device 12 | . . . . 15 25 26 22 23 17 2 Storage 5 | . . . 11 6 6 6 5 5 4 . Processor 1 | . . . . . . . . . . 13 Hackware 2 | . . . 13 3 . . . . . . Protection 2 | . . . 2 . . . . . 3 6 Energy Gun 6 | . 28 23 . 17 10 13 16 13 2 1 Energy Cannon 2 | . . . . . . . . . 9 . Ballistic Gun 5 | . . 4 15 . 6 6 5 4 . 4 Ballistic Cannon 5 | . . . 11 . . . . 2 8 3 Peak Build Rating 90 | 4 4 3 31 78 78 73 83 86 90 60 Average Rating 53 | 2 3 3 13 68 74 73 80 84 59 49 On Entrance 43 | . 4 3 3 31 78 73 73 83 86 47 Avg Prop Armor Cover (%) 6 | 28 24 . 4 9 . . . 3 7 10 Naked Turns 6 | . . . . . . . . . 6 . Heaviest Build 86 | 4 4 4 24 50 54 48 63 84 86 35 Greatest Support 100 | 20 6 6 22 100 100 100 100 100 80 58 Greatest Overweight (x) 28 | 1 1 . 1 4 . . . 1 28 11 Average Overweight (x) . | . . . . . . . . . 6 . Largest Inventory Capacity 10 | 5 5 5 10 10 10 10 10 10 10 5 Average Capacity 8 | 5 5 5 9 10 10 10 10 10 9 5 Most Carried 10 | 3 5 5 10 10 10 10 10 10 10 5 Average Carried 7 | 1 4 5 7 9 9 10 8 9 7 4 Final Capacity 10 | 5 5 5 10 10 10 10 10 10 5 5 Final Carried 10 | 2 5 5 9 10 10 10 10 10 5 5 Class Distribution -------------------- 30% | Scavenger-Gunner 20% | Hacker-Mutant 16% | Scavenger-Tank 14% | Scavenger-Mutant 10% | Mutant 4% | Gunner Dominant Class ---------------- Mutant | -10/Materials Mutant | -10/Subcaves Hacker-Mutant | -8/Scraptown Hacker-Gunner | -6/Factory Scavenger-Gunner | -6/Lower Caves Scavenger-Gunner | -6/Lower Caves Scavenger-Gunner | -5/Factory Scavenger-Gunner | -5/Upper Caves Scavenger-Tank | -5/Upper Caves Scavenger-Mutant | -5/Warlord Resources | -11 -10 -10 -8 -6 -6 -6 -5 -5 -5 -5 ----------- Run | Yrd Mat Sub Scr Fac Low Low Fac Upp Upp War Matter Collected 2711 | 224 26 44 171 724 490 . 76 223 562 171 Remotely . | . . . . . . . . . . . Salvage Created 3251 | . 30 . 140 771 355 . 323 996 520 116 Parts 109 | . 2 . 3 25 18 . 14 19 19 9 Haulers Intercepted . | . . . . . . . . . . . Recyclers Shooed 2 | . . . . 2 . . . . . . Parts Field Recycled . | . . . . . . . . . . . Retrieved Matter . | . . . . . . . . . . . Parts Self-Destructed 50 | . . 3 . . 16 . . 20 11 . Prevented 4 | . . . . . 3 . . 1 . . Parts Restored . | . . . . . . . . . . . Kills | -11 -10 -10 -8 -6 -6 -6 -5 -5 -5 -5 ------- Run | Yrd Mat Sub Scr Fac Low Low Fac Upp Upp War Combat Hostiles Destroyed 49 | . . . 2 11 5 . 3 12 12 4 Melee 5 | . . . . . . . . . 5 . Guns 37 | . . . 2 11 5 . 3 10 3 3 Cannons 5 | . . . . . . . . . 4 1 Classes Destroyed 14 | . 1 . 1 6 . . 2 3 1 . Worker 1 | . . . . 1 . . . . . . Recycler 2 | . . . . 2 . . . . . . Minesweeper 1 | . . . . . . . . 1 . . Watcher 1 | . 1 . . . . . . . . . Swarmer 15 | . . . . 4 . . . 1 7 3 Grunt 14 | . . . . 3 3 . 1 3 3 1 Brawler 3 | . . . . . . . 1 2 . . Duelist 1 | . . . . . . . . 1 . . Sentry 6 | . . . . 2 1 . 1 1 1 . Hunter 5 | . . . . 2 1 . . 2 . . Programmer 2 | . . . . . . . . 2 . . Scrapper 2 | . . . 2 . . . . . . . Scrapoid 1 | . . . . . . . 1 . . . Mutant 1 | . . . . . . . . . 1 . Best Kill Streak 8 | . 1 . 2 6 3 . 3 8 5 2 Combat Bots Only 8 | . . . 2 6 3 . 3 8 5 2 Max Kills in Single Turn 2 | . 1 . 1 1 1 . 2 2 1 1 Gunslinging 1 | . . . . . . . . 1 . . Exploded . | . . . . . . . . . . . Melee 1 | . . . . . . . . . 1 . Uniques/NPCs Destroyed . | . . . . . . . . . . . Combat | -11 -10 -10 -8 -6 -6 -6 -5 -5 -5 -5 -------- Run | Yrd Mat Sub Scr Fac Low Low Fac Upp Upp War Hostile Shots Fired 516 | . . 4 5 101 17 . 1 95 162 131 Missed 166 | . . 3 1 34 5 . . 28 40 55 Hits 350 | . . 1 4 67 12 . 1 67 122 76 Melee 2 | . . . . . . . 1 1 . . Projectile 348 | . . 1 4 67 12 . . 66 122 76 Critical Strikes 13 | . . . 1 1 1 . 1 4 2 3 Damage Taken 4943 | . . 67 64 783 205 . 36 787 1965 1036 Core 1201 | . . 52 16 115 14 . . 23 751 230 Absorbed by Shields 218 | . . . . . 14 . . 204 . . Ignored by Resistances 1348 | . . 18 19 229 60 . 10 276 439 297 Regen/Repaired (Parts) 159 | . . . . . . . . . . 159 Core Remaining (%) 85 | 100 . . 72 . . 84 . . . . Volleys Fired 124 | . 1 4 4 35 8 . 5 28 28 11 Largest 4 | . 2 2 2 3 3 . 4 4 4 3 Hottest 403 | . 80 40 117 215 110 . 180 175 403 110 Shots Fired 315 | . 2 8 8 70 24 . 17 108 52 26 Gun 277 | . 2 8 5 70 24 . 17 107 22 22 Cannon 38 | . . . 3 . . . . 1 30 4 Launcher . | . . . . . . . . . . . Special . | . . . . . . . . . . . Kinetic 86 | . . 8 4 3 8 . 5 29 17 12 Thermal 224 | . . . 3 67 16 . 12 79 33 14 Explosive . | . . . . . . . . . . . Electromagnetic 5 | . 2 . 1 . . . . . 2 . Robot Hit Streak 25 | . 1 5 6 25 18 . 14 24 12 4 Robot Miss Streak 5 | . . . 1 3 1 . 1 2 5 4 Penetration Max 1 | . . . . . . . . . . 1 Secondary Targets 7 | . . . . 2 1 . . 4 . . Max Gunslinging Chain 2 | . . . . 1 1 . . 2 . . Shots Hit Robots 238 | . 1 4 5 54 23 . 14 87 39 11 Core Hits 107 | . 1 2 7 26 10 . 8 28 17 8 Critical Kills 2 | . . . . . . . . 1 . 1 Critical Parts Destroyed 1 | . . . . . . . . 1 . . Critical Strikes 16 | . . . . 3 2 . 1 8 1 1 Burn 12 | . . . . 3 2 . 1 6 . . Destroy 1 | . . . . . . . . . . 1 Blast 1 | . . . . . . . . . 1 . Smash 2 | . . . . . . . . 2 . . Melee Attacks 21 | . . . . . 2 . . 4 15 . Impact 6 | . . . . . 2 . . 4 . . Slashing 15 | . . . . . . . . . 15 . Piercing . | . . . . . . . . . . . Sneak Attacks . | . . . . . . . . . . . Combat Hostiles . | . . . . . . . . . . . Follow-up Attacks . | . . . . . . . . . . . Damage Inflicted 6594 | . 20 47 154 1314 705 . 385 2446 1328 195 Guns 5051 | . 20 47 77 1314 487 . 385 2179 364 178 Cannons 628 | . . . 77 . . . . . 534 17 Explosions . | . . . . . . . . . . . Melee 915 | . . . . . 218 . . 267 430 . Ramming . | . . . . . . . . . . . Kinetic 1249 | . . 47 84 25 153 . 64 524 236 116 Thermal 4315 | . . . 59 1289 334 . 321 1655 578 79 Explosive . | . . . . . . . . . . . Electromagnetic 115 | . 20 . 11 . . . . . 84 . Impact 485 | . . . . . 218 . . 267 . . Slashing 430 | . . . . . . . . . 430 . Piercing . | . . . . . . . . . . . Highest Corruption 11 | . . . . 1 1 1 . 1 11 11 Average Corruption 1 | . . . . 1 1 1 . 1 1 10 Corruption Purged . | . . . . . . . . . . . Corruption Blocked . | . . . . . . . . . . . Effects 65 | . . . . 4 10 . . 15 26 10 Message Errors 20 | . . . . . 3 . . 4 12 1 Matter Fused 11 | . . . . 1 1 . . 2 4 3 Heat Flow Errors 12 | . . . . 2 2 . . 3 2 3 Energy Discharges 9 | . . . . . 3 . . 1 3 2 Parts Fused 2 | . . . . . . . . 2 . . Data Loss (minor) 4 | . . . . 1 . . . 1 2 . Data Loss (major) 3 | . . . . . 1 . . 1 1 . Misfires 1 | . . . . . . . . 1 . . Alerts 2 | . . . . . . . . . 2 . Misdirections 1 | . . . . . . . . . . 1 Overload Shots 10 | . . . . 5 . . . . 5 . Overflow Damage 366 | . . . . . 202 . . 119 45 . Projectiles 39 | . . . . . . . . . 39 . Explosions . | . . . . . . . . . . . Melee 327 | . . . . . 202 . . 119 6 . Knockbacks 5 | . . . 2 . . . . . 3 . Impact . | . . . . . . . . . . . Kinetic 5 | . . . 2 . . . . . 3 . Secondary . | . . . . . . . . . . . Self-Inflicted Damage . | . . . . . . . . . . . Shots . | . . . . . . . . . . . Rammed . | . . . . . . . . . . . Targets Rammed . | . . . . . . . . . . . Kicked . | . . . . . . . . . . . Crushed . | . . . . . . . . . . . Highest Temperature 1206 | . 3 . 180 433 94 . 361 529 1206 249 Average Temperature 196 | . 2 . 67 157 40 . 134 166 393 72 Received Heat Transfer 895 | . . 6 36 87 108 . 27 172 234 225 Effects 97 | . . . . 13 . . 1 9 74 . Shutdowns 37 | . . . . 1 . . 1 6 29 . Energy Bleed 9 | . . . . 4 . . . 2 3 . Interference 20 | . . . . 8 . . . . 12 . Matter Decay 6 | . . . . . . . . . 6 . Short Circuit 7 | . . . . . . . . 1 6 . Damage (minor) 7 | . . . . . . . . . 7 . Damage (major) 8 | . . . . . . . . . 8 . Damage (core) 3 | . . . . . . . . . 3 . Siege Activations . | . . . . . . . . . . . Martial Activations . | . . . . . . . . . . . Shielding Activations . | . . . . . . . . . . . Robots Disrupted . | . . . . . . . . . . . Combat Hostiles . | . . . . . . . . . . . Robots Corrupted 1 | . . . . . . . . 1 . . Combat Hostiles 1 | . . . . . . . . 1 . . Parts Fried 1 | . . . . . . . . . 1 . Impact Corruptions 8 | . . . . . 3 . . 5 . . Robots Melted 3 | . . . . . . . . 3 . . Combat Hostiles 2 | . . . . . . . . 2 . . Parts Melted 27 | . . . 3 13 . . . 7 4 . Heat Transferred 8055 | . . . 124 2638 783 . 531 3102 655 222 Parts Sabotaged . | . . . . . . . . . . . Parts Stolen . | . . . . . . . . . . . Parts Stripped . | . . . . . . . . . . . Power Chain Reactions . | . . . . . . . . . . . Alert | -11 -10 -10 -8 -6 -6 -6 -5 -5 -5 -5 ------- Run | Yrd Mat Sub Scr Fac Low Low Fac Upp Upp War Maximum Alert Level . | . . . . . . . . . . . Low Security (%) 100 | 100 100 . . 100 . . 100 . . . Level 1 . | . . . . . . . . . . . Level 2 . | . . . . . . . . . . . Level 3 . | . . . . . . . . . . . Level 4 . | . . . . . . . . . . . Level 5 . | . . . . . . . . . . . High Security . | . . . . . . . . . . . Max Security . | . . . . . . . . . . . Peak Influence 163 | . 7 . . 163 . . 138 . . . Initial . | . . . . . . . . . . . Average 59 | . . . . 73 . . 62 . . . Influence Increases 1524 | . 7 . . 325 162 . 168 331 256 275 Destroy 0b10 Robot/C 1020 | . . . . 220 120 . 100 280 220 80 Destroy 0b10 Robot/NC 35 | . 5 . . 15 . . . 15 . . Destroy Leader 142 | . 2 . . 50 20 . 20 30 20 . Allied During Kill 42 | . . . . . 22 . 13 6 1 . Successful Hack 6 | . . . . 6 . . . . . . Disable Machine 9 | . . . . . . . 9 . . . Destroy Structure 30 | . . . . 4 . . 26 . . . Partial Spotted 15 | . . . . 15 . . . . . . Lose Combat Pursuer 225 | . . . . 15 . . . . 15 195 Influence Decreases 1479 | . 7 . . 230 257 . 60 439 256 230 Entered New Map 93 | . . . . . 44 . . 49 . . Time Decay 1206 | . 7 . . 220 213 . 40 370 176 180 Lost Part 140 | . . . . 10 . . . 20 60 50 Lost Ally 40 | . . . . . . . 20 . 20 . Squads Dispatched 5 | . 1 . . 4 . . . . . . Investigation 3 | . 1 . . 2 . . . . . . Extermination 1 | . . . . 1 . . . . . . Reinforcement 1 | . . . . 1 . . . . . . Assault . | . . . . . . . . . . . Garrison . | . . . . . . . . . . . Intercept . | . . . . . . . . . . . Searches Triggered . | . . . . . . . . . . . Construction Impeded . | . . . . . . . . . . . Haulers Reinforced . | . . . . . . . . . . . Active Scanning Responses . | . . . . . . . . . . . Cargo Convoy Interrupts . | . . . . . . . . . . . Stealth | -11 -10 -10 -8 -6 -6 -6 -5 -5 -5 -5 --------- Run | Yrd Mat Sub Scr Fac Low Low Fac Upp Upp War Distress Signals . | . . . . . . . . . . . Communications Jammed . | . . . . . . . . . . . Distress Signals . | . . . . . . . . . . . Times Spotted 100 | . . 1 17 14 5 . 4 15 14 30 Peak Tracking Total 11 | . . 1 6 4 3 . 3 7 5 11 Tactical Retreats 8 | . . . 1 1 . . . . 1 5 Traps | -11 -10 -10 -8 -6 -6 -6 -5 -5 -5 -5 ------- Run | Yrd Mat Sub Scr Fac Low Low Fac Upp Upp War Traps Triggered 1 | . . 1 . . . . . . . . Indirectly . | . . . . . . . . . . . Trap Hack Attempts . | . . . . . . . . . . . Triggered . | . . . . . . . . . . . Disarmed . | . . . . . . . . . . . Reprogrammed . | . . . . . . . . . . . Reused . | . . . . . . . . . . . Traps Extracted . | . . . . . . . . . . . Installed . | . . . . . . . . . . . Triggered . | . . . . . . . . . . . Machines | -11 -10 -10 -8 -6 -6 -6 -5 -5 -5 -5 ---------- Run | Yrd Mat Sub Scr Fac Low Low Fac Upp Upp War Machines Disabled 2 | . . . . . . . 1 . 1 . Max in Single Turn 1 | . . . . . . . . . 1 . Machines Repaired . | . . . . . . . . . . . Machines Dismantled . | . . . . . . . . . . . Machines Sabotaged . | . . . . . . . . . . . Overloaded Fab Kills . | . . . . . . . . . . . Hacking | -11 -10 -10 -8 -6 -6 -6 -5 -5 -5 -5 --------- Run | Yrd Mat Sub Scr Fac Low Low Fac Upp Upp War Machines Accessed 17 | . 1 . 7 4 1 . . 2 1 1 Terminals 2 | . 1 . . 1 . . . . . . Fabricators 1 | . . . . 1 . . . . . . Repair Stations 1 | . . . . 1 . . . . . . Recycling Units 1 | . . . . 1 . . . . . . Scanalyzers . | . . . . . . . . . . . Garrison Access . | . . . . . . . . . . . Total Hacks 76 | . 3 . 48 11 7 . . 5 1 1 Successful 68 | . 2 . 48 4 7 . . 5 1 1 Failed 8 | . 1 . . 7 . . . . . . Catastrophic 1 | . . . . 1 . . . . . . Database Lockouts . | . . . . . . . . . . . Manual 1 | . . . . 1 . . . . . . Terminals 7 | . 3 . . 4 . . . . . . Fabricators 2 | . . . . 2 . . . . . . Repair Stations 2 | . . . . 2 . . . . . . Recycling Units 3 | . . . . 3 . . . . . . Scanalyzers . | . . . . . . . . . . . Garrison Access . | . . . . . . . . . . . Terminal Hacks 67 | . 2 . 48 3 7 . . 5 1 1 Record 59 | . . . 48 . 7 . . 4 . . Open Door 3 | . . . . . . . . 1 1 1 Emergency Access Points 1 | . 1 . . . . . . . . . Alert Level 1 | . . . . 1 . . . . . . Locate Traps 1 | . 1 . . . . . . . . . Dispatch Records 1 | . . . . 1 . . . . . . Registered Components 1 | . . . . 1 . . . . . . Fabricator Hacks . | . . . . . . . . . . . Repair Station Hacks 1 | . . . . 1 . . . . . . Refit 1 | . . . . 1 . . . . . . Recycling Unit Hacks . | . . . . . . . . . . . Scanalyzer . | . . . . . . . . . . . Garrison Access Hacks . | . . . . . . . . . . . Unauthorized Hacks . | . . . . . . . . . . . Terminals . | . . . . . . . . . . . Fabricators . | . . . . . . . . . . . Repair Stations . | . . . . . . . . . . . Recycling Units . | . . . . . . . . . . . Scanalyzers . | . . . . . . . . . . . Garrison Access . | . . . . . . . . . . . Data Cores Recovered . | . . . . . . . . . . . Used . | . . . . . . . . . . . Hacking Detections 3 | . . . . 3 . . . . . . Full Trace Events 2 | . . . . 2 . . . . . . Feedback Events 1 | . . . . 1 . . . . . . Corruption 1 | . . . . 1 . . . . . . Feedback Blocked . | . . . . . . . . . . . Robot Schematics Acquired . | . . . . . . . . . . . Robots Built . | . . . . . . . . . . . Authchips . | . . . . . . . . . . . Time . | . . . . . . . . . . . Total Robot Build Rating . | . . . . . . . . . . . Part Schematics Acquired . | . . . . . . . . . . . Parts Built . | . . . . . . . . . . . Authchips . | . . . . . . . . . . . Time . | . . . . . . . . . . . Total Part Build Rating . | . . . . . . . . . . . Part Studies Acquired . | . . . . . . . . . . . Parts Repaired . | . . . . . . . . . . . Time . | . . . . . . . . . . . Parts Recycled . | . . . . . . . . . . . Recycled Matter . | . . . . . . . . . . . Retrieved Matter . | . . . . . . . . . . . Retrieved Components . | . . . . . . . . . . . Parts Scanalyzed . | . . . . . . . . . . . Part Schematics Acquired . | . . . . . . . . . . . Parts Damaged . | . . . . . . . . . . . Bothacking | -11 -10 -10 -8 -6 -6 -6 -5 -5 -5 -5 ------------ Run | Yrd Mat Sub Scr Fac Low Low Fac Upp Upp War Used RIF Installer . | . . . . . . . . . . . Robots Hacked . | . . . . . . . . . . . Non-combat . | . . . . . . . . . . . Combat . | . . . . . . . . . . . Robot Hacks Applied . | . . . . . . . . . . . Relay Couplers Released . | . . . . . . . . . . . Fabnet Peak Effective % . | . . . . . . . . . . . Robots Rewired 2 | . . . . . . . . 2 . . Allies Hacked . | . . . . . . . . . . . Hacks Repelled . | . . . . . . . . . . . Allies | -11 -10 -10 -8 -6 -6 -6 -5 -5 -5 -5 -------- Run | Yrd Mat Sub Scr Fac Low Low Fac Upp Upp War Total Allies 11 | . . . 1 . 7 . . 2 1 . Largest Group 7 | . . . 1 . 7 4 4 2 1 . Highest-Rated Group 297 | . . . 40 . 297 188 188 78 146 . Highest-Rated Ally 146 | . . . 40 . 47 47 47 49 146 . Total Orders . | . . . . . . . . . . . Ally Attacks 74 | . . . 16 . 12 . 29 13 4 . Total Damage 1332 | . . . 220 . 243 . 466 286 117 . Kills 10 | . . . 3 . 1 . 3 3 . . Allies Corrupted . | . . . . . . . . . . . Allies Melted . | . . . . . . . . . . . Intel | -11 -10 -10 -8 -6 -6 -6 -5 -5 -5 -5 ------- Run | Yrd Mat Sub Scr Fac Low Low Fac Upp Upp War Active Infowar (turns) 1303 | . . . . . . . . . . 1303 Decoding 1303 | . . . . . . . . . . 1303 Robot Analysis Total . | . . . . . . . . . . . Derelict Logs Recovered 6 | . . . . . 2 . . 2 2 . Drone Launches . | . . . . . . . . . . . Drone Recoveries . | . . . . . . . . . . . Exploration | -11 -10 -10 -8 -6 -6 -6 -5 -5 -5 -5 ------------- Run | Yrd Mat Sub Scr Fac Low Low Fac Upp Upp War Turns Passed 10882 | 50 88 259 2175 534 1003 15 147 2144 2901 1566 Spaces Moved 6845 | 44 81 336 2129 377 760 13 104 1624 662 715 Core 362 | 40 62 . . 3 . . . . 253 4 Treads 683 | 4 . . . . . . . . 107 572 Legs 2982 | . . . . 225 760 13 104 1624 138 118 Wheels 5 | . . . . . . . . . 5 . Hover 2648 | . 19 336 2126 149 . . . . . 18 Flight 165 | . . . 3 . . . . . 159 3 Fastest Speed 32 | 50 60 60 35 52 120 120 120 120 32 106 Average Speed 145 | 91 90 60 98 98 120 120 120 124 407 199 Slowest Speed 1450 | 160 100 60 116 250 120 120 120 190 1450 695 Overloaded Moves . | . . . . . . . . . . . Propulsion Burnouts . | . . . . . . . . . . . Robots Hopped 1 | . . . . . 1 . . . . . Potential Cave-ins . | . . . . . . . . . . . Cave-ins Triggered . | . . . . . . . . . . . Exploration Rate (%) 38 | 3 15 15 93 6 79 4 3 99 64 46 Regions Visited 10 Branch Regions 7 Pre-discovered Areas 1 | . . . . . . . . 1 . . Known Exits Taken 2 | . . . . . 1 . 1 . . . Unknown Exits Taken 8 | 1 1 1 1 1 . 1 . 1 1 . Scrap Searched 12 | . . . 4 . 3 . . 2 3 . Spaces Dug . | . . . . . . . . . . . Terrain Destroyed 28 | . . . . 1 . . . 11 13 3 Melee . | . . . . . . . . . . . Projectile 28 | . . . . 1 . . . 11 13 3 AOE . | . . . . . . . . . . . Terrain Rammed . | . . . . . . . . . . . Walls Destroyed . | . . . . . . . . . . . Machines Disabled . | . . . . . . . . . . . Actions | -11 -10 -10 -8 -6 -6 -6 -5 -5 -5 -5 --------- Run | Yrd Mat Sub Scr Fac Low Low Fac Upp Upp War Total 7515 | 52 93 383 2195 484 832 12 118 1697 814 835 Wait 277 | . 6 42 26 7 45 . . 6 66 79 Move 6834 | 44 80 335 2128 376 757 12 103 1623 661 715 Hop 1 | . . . . . 1 . . . . . Pick Up 48 | 4 3 . 9 12 5 . 1 5 8 1 Fast Attach 65 | 2 1 . 11 16 1 . 3 5 15 11 Attach 22 | 2 . . . 5 3 . 2 3 5 2 Detach 7 | . . . . 2 . . 1 1 1 2 Swap 27 | . . 2 4 7 5 . 1 4 4 . Drop 78 | . 2 . 13 24 5 . 2 7 11 14 Fire 124 | . 1 4 4 35 8 . 5 28 28 11 Melee 21 | . . . . . 2 . . 4 15 . Ram . | . . . . . . . . . . . Kick . | . . . . . . . . . . . Crush . | . . . . . . . . . . . Escape Stasis . | . . . . . . . . . . . Rewire 11 | . . . . . . . . 11 . . Trap . | . . . . . . . . . . . Miscellaneous . | . . . . . . . . . . . Route ------- -11/Scrapyard -10/Materials -10/Subcaves -8/Scraptown (discovered 2 exits: *Fac x2) -6/Factory -6/Lower Caves -6/Lower Caves -5/Factory (discovered 2 exits: *Upp x2) -5/Upper Caves -5/Upper Caves -5/Warlord (discovered 1 exit: [*Pro]) History --------- Turn | Location | Event 31 | -11/Scrapyard | Discovered new exit (range 15) 51 | -11/Scrapyard | Entered Materials 52 | -10/Materials | Met a group of wandering Federalists 132 | -10/Materials | Discovered new exit (range 6) 139 | -10/Materials | Entered Subcaves 139 | -10/Subcaves | Accompanied by 1 ally 140 | -10/Subcaves | Continued accompanying wandering Federalists (6) 140 | -10/Subcaves | Approached by a straggling Scientist 313 | -10/Subcaves | Build established: Mutant 331 | -10/Subcaves | A swath of the cavern ceiling suddenly collapsed 367 | -10/Subcaves | Disturbed a concealed Subdweller 378 | -10/Subcaves | Wandering Federalist uncovered a shortcut to Scraptown 398 | -10/Subcaves | Entered Scraptown 711 | -8/Scraptown | Build established: Hacker-Mutant 837 | -8/Scraptown | Visited SPCMW 891 | -8/Scraptown | Visited Red Mages 989 | -8/Scraptown | Visited Awakened 1054 | -8/Scraptown | Visited UFD Registry 1054 | -8/Scraptown | Registered with UFD as "Steelslider" 1086 | -8/Scraptown | Visited Fellowship of the Rings 1130 | -8/Scraptown | Visited Junk Repository 1170 | -8/Scraptown | Visited Cave Peace 1359 | -8/Scraptown | Discovered new exit (range 5) 1610 | -8/Scraptown | Visited Abandonware Association 1624 | -8/Scraptown | Learned abandonware demo "OVRCLOCK.EXE" 1650 | -8/Scraptown | Learned abandonware demo "MELTYB.EXE" 1693 | -8/Scraptown | Visited Scrapoid Pod Storage 1699 | -8/Scraptown | Found Scrapoid Pod 1722 | -8/Scraptown | Visited Chapter 10 1788 | -8/Scraptown | Discovered new exit (range 5) 1953 | -8/Scraptown | Visited LU-1G1's Boring Crew 1998 | -8/Scraptown | Visited Scrap Suit Storage 2067 | -8/Scraptown | Visited Research Penetration Think Tank 2274 | -8/Scraptown | Visited Botcube Research 2292 | -8/Scraptown | Found Botcube 2336 | -8/Scraptown | Met Optimus 2336 | -8/Scraptown | Accepted into 0bPrime 2425 | -8/Scraptown | Civil war broke out across Scraptown 2448 | -8/Scraptown | Visited Derelict Rescue Squad 2462 | -8/Scraptown | Botcube activated 2474 | -8/Scraptown | Botcube completed mutation into legged form, armed with 2 guns. 2484 | -8/Scraptown | Visited Junk Repository 2534 | -8/Scraptown | Lost 11 allies 2573 | -8/Scraptown | Entered Factory 2573 | -6/Factory | Evolved 8 slots: Power x1, Propulsion x3, Utility x3, Weapon x1 3021 | -6/Factory | Discovered new exit (range 7) 3107 | -6/Factory | Entered Lower Caves 3167 | -6/Lower Caves | Build established: Gunner 3171 | -6/Lower Caves | Scrapoid Pod released 06L05-D (x5) 3272 | -6/Lower Caves | Identified exit to Lower Caves 3656 | -6/Lower Caves | Build established: Mutant 3700 | -6/Lower Caves | A Commander dispatched an escort 3723 | -6/Lower Caves | Learned Factory emergency access door positions 3723 | -6/Lower Caves | Learned Research emergency access door positions 3723 | -6/Lower Caves | Learned Research stockpile data 4034 | -6/Lower Caves | Attracted the attention of an 0b10 checkpoint 4035 | -6/Lower Caves | Build established: Scavenger-Gunner 4110 | -6/Lower Caves | Entered another Lower Caves area 4110 | -6/Lower Caves | Accompanied by 6 allies 4111 | -6/Lower Caves | Commander's escort returned to base 4111 | -6/Lower Caves | Commander's escort returned to base 4116 | -6/Lower Caves | Discovered new exit (range 7) 4125 | -6/Lower Caves | Entered Factory 4125 | -5/Factory | Accompanied by 4 allies 4125 | -5/Factory | Evolved 2 slots: Power x1, Weapon x1 4126 | -5/Factory | Identified exit to Upper Caves 4207 | -5/Factory | Discovered exit to Upper Caves (range 11) 4245 | -5/Factory | Lost 3 allies 4272 | -5/Factory | Entered Upper Caves 4272 | -5/Upper Caves | Accompanied by 1 ally 4451 | -5/Upper Caves | Attracted the attention of an 0b10 outpost 4557 | -5/Upper Caves | Destroyed 8 combat bots 4854 | -5/Upper Caves | Learned Factory emergency access door positions 5215 | -5/Upper Caves | Learned 4 Factory zone layouts 5532 | -5/Upper Caves | Entered an active Warlord outpost 5542 | -5/Upper Caves | Learned location of Armory (-4) 5542 | -5/Upper Caves | Learned 8 Factory zone layouts 5542 | -5/Upper Caves | Learned Factory trap positions 5542 | -5/Upper Caves | Learned Armory trap positions 5850 | -5/Upper Caves | Encountered a Warlord checkpoint 6079 | -5/Upper Caves | Discovered new exit (range 9) 6416 | -5/Upper Caves | Entered another Upper Caves area 6416 | -5/Upper Caves | Accompanied by 1 ally 7007 | -5/Upper Caves | Attracted the attention of an 0b10 checkpoint 7045 | -5/Upper Caves | Core integrity fell below 50% 7069 | -5/Upper Caves | Lost 5 parts (4n1u) 7288 | -5/Upper Caves | Learned 8 Factory zone layouts 7593 | -5/Upper Caves | Build established: Scavenger-Tank 8076 | -5/Upper Caves | Encountered a Warlord checkpoint 8858 | -5/Upper Caves | Learned 4 Factory zone layouts 9090 | -5/Upper Caves | Released all parts (11) 9232 | -5/Upper Caves | Spotted B-75 Beast 9241 | -5/Upper Caves | Discovered new exit (range 10) 9260 | -5/Upper Caves | Attacked by a delusional Derelict stockpiling parts 9290 | -5/Upper Caves | System corruption reached 10% 9303 | -5/Upper Caves | Lost 3 parts (2n1w) 9317 | -5/Upper Caves | Entered Warlord 9436 | -5/Warlord | Discovered new exit (range 8) 9524 | -5/Warlord | System corruption cleaned by Quarantine Array 9557 | -5/Warlord | Build established: Scavenger-Mutant 10014 | -5/Warlord | Opened side exit 10400 | -5/Warlord | Rebuked by Warlord 10424 | -5/Warlord | Warlord's base attacked by MAIN.C 10551 | -5/Warlord | Core integrity fell below 20% 10774 | -5/Warlord | Warlord forces counterattacked 10844 | -5/Warlord | Spotted Executioner 10883 | -5/Warlord | Destroyed by Executioner with Helical Railgun Last Messages --------------- 10865_ GZ-3J3(g) knocked back. 10867_ Penetrated by Slug. 10867_ B-60 Warrior suffers critical hit (Burn). 10868_ GZ-3J3(g) Carbon-fiber Leg blown off. 10868_ GZ-3J3(g) Beamcaster blown off. 10868_ GZ-3J3(g) Carbon-fiber Leg blown off. 10868_ GZ-3J3(g) Lgt. Angular Momentum Engine blown off. 10868_ E-15 Imp destroyed. 10870_ GZ-3J3(g) suffers critical hit (Smash). 10870_ GZ-3J3(g) system corrupted by crushing effect. 10870_ GZ-3J3(g) destroyed. 10879_ Slug penetrates B-60 Warrior. 10879_ Slug penetrates Earth. 10880_ Penetrated by Slug. 10880_ Slug penetrates Reinforced Barrier. 10880_ WAR.Sys disabled. 10883_ Penetrated by Slug. [Achievement: This Is Interesting...] Map ----- +----------------------------------------------------+ | | | | | | | | | | | | | | | | | | | | | | | | | | | | | | | | | | | | | | | ????????????????????????????? #??????????????????? | | ????????????????????????????# ###????????????????? | | ?????????????????????????#### # #####????????????? | | ?????????????????????##### #????????????? | | ?????################# ##;; ;; ;#????????????? | | ?????#^ ! =[ ;###??????????? | | ?????# ^ [% @ b #?????????? | | ?????# """" ]=""########## l* ##??????????? | | ?????# ^""""!%=###????????# #???????????? | | ?????# """" !=#??????????## =% #???????????? | | ?###?# """" ##??????????#####*Eg; #???????????? | | ## ### [% "#??????????????#"%/;##???????????? | | ^ =% ##??????????????## "#????????##### | | """"! #??????????????## % #???????## # | | """" ######?????????# #??????## | | ## """" # #?????????# =#?????## < | | ?# """" # #?????????# [%*#????# | | ?# " #?????????# ""????# | | ?# # #?????????## ^ ="#???# | | ?# """" # #??????????###=*["#????# | | ?# """" ######????????????##!%%#?????# # | | ## """" #??????????????????##[]###?### #? | | """" #???????????????????#!!#"###[= %="" | | #???????????????????#%[[ *%=*%[ | | #???????????????????##%=###%%=### | | ####+### #????????????????????## ##?# | | "" #?## #?????????????????????##" ##?# | | """ #??# #???""??????????????????# #?# | | " " #??# #??#""#?????????????????#" ^ ### | | #??# #??#""#??????????????????"" ### | | #### #######""#####???????????????" #### | +----------------------------------------------------+ Best States ------------- Heat Dissipation 59 Energy Generation 43 Energy Capacity 680 Matter Stores 300 Matter Capacity 300 Sight Range 16 Terrain Scan Density 10 Armor Coverage 300 Resistance: KI 20 Resistance: TH 20 Resistance: EX 20 Resistance: EM 20 Resistance: I 20 Resistance: S 20 Resistance: P 20 Utility Shielding 66 Weapon Cycling 20 Evasion (%) 63 Melee Accuracy 16 Recoil Reduction 2 Energy Filtering 30 Particle Charging 20 Force Boost 20 Offensive Hacking 10 Defensive Hacking 10 Item Schematics ----------------- None Robot Schematics ------------------ None Fabricated ------------ Nothing Repaired ---------- Nothing Studied --------- None Alien Tech Used ----------------- None Achievements -------------- Civilization 2243 Frankenstein Link The Feds Physics Hates This One Trick Plot Armor Strength In Numbers This Is Interesting... Uncivil War Challenges ------------ None Game ------ Seed AssembledEncryptedStreamer Manual? 0 Play Time 01:59:16 Cumulative 84.9 hours Start 2025.12.25 @ 20:04:16 End 2025.12.25 @ 22:23:54 Sessions 1 Manual Loads 0 Difficulty Adventurer Special Mode None Game No. 47 Rogue 29 Adventurer 18 Explorer 0 Win Type - Total 0 Types 0/0/0/0/0/0/0/0/0/0 Lore% 30 Gallery% 41 Achievement% 29 Wizard Run 0 Options --------- Layout 1 ASCII 0 Keyboard 0 Movement Mouse Keybinds 0 Fullscreen 2 Font 32/SmallcapsGlow Map View 50x35 Zoom Use 0% Tactical HUD 1 Map Filters NONE Filters NONE Steam 1 RUN: 747f61a9-6b02-4111-bdfa-f1c1eaea61d6